[Event "Late-Titled-Tuesday-Blitz-December-26-2023"]
[Site "Chess.com"]
[Date "2023.12.26"]
[Round "2"]
[White "kasparicy"]
[Black "miraitrunks"]
[Result "1-0"]
[WhiteElo "2438"]
[BlackElo "2086"]
[TimeControl "180+1"]
[EndTime "14:16:14 PST"]
[Termination "kasparicy won by resignation"]

1. e4 {[%clk 0:03:00.9]} 1... e6 {[%clk 0:02:59.3]} 2. d4 {[%clk 0:02:53.9]}
2... d5 {[%clk 0:03:00.2]} 3. Nd2 {[%clk 0:02:54.6]} 3... dxe4 {[%clk
0:02:59.7]} 4. Nxe4 {[%clk 0:02:55.5]} 4... Bd7 {[%clk 0:02:59.7]} 5. Nf3 {[%clk
0:02:55.3]} 5... Bc6 {[%clk 0:03:00.2]} 6. Bd3 {[%clk 0:02:55.9]} 6... Nf6
{[%clk 0:03:00.4]} 7. Ng3 {[%clk 0:02:55.9]} 7... Bd6 {[%clk 0:03:00.5]} 8. Bg5
{[%clk 0:02:55]} 8... Nbd7 {[%clk 0:02:59.7]} 9. Qe2 {[%clk 0:02:55]} 9... h6
{[%clk 0:02:59.5]} 10. Bd2 {[%clk 0:02:49.8]} 10... O-O {[%clk 0:02:59.5]} 11.
O-O-O {[%clk 0:02:49.2]} 11... Re8 {[%clk 0:02:50.8]} 12. Kb1 {[%clk 0:02:49.6]}
12... e5 {[%clk 0:02:51]} 13. dxe5 {[%clk 0:02:43.3]} 13... Nxe5 {[%clk
0:02:51.9]} 14. Nxe5 {[%clk 0:02:40.7]} 14... Bxe5 {[%clk 0:02:50]} 15. Be3
{[%clk 0:02:40.8]} 15... Qe7 {[%clk 0:02:44.4]} 16. Nf5 {[%clk 0:02:39.8]} 16...
Qb4 {[%clk 0:02:44.4]} 17. c3 {[%clk 0:02:31.1]} 17... Bxc3 {[%clk 0:02:40.6]}
18. Qc2 {[%clk 0:02:30.3]} 18... Be5 {[%clk 0:02:35.2]} 19. h3 {[%clk
0:02:25.2]} 19... Ne4 {[%clk 0:02:27.7]} 20. Ka1 {[%clk 0:01:53.1]} 20... Rad8
{[%clk 0:02:17.6]} 21. f3 {[%clk 0:01:45.4]} 21... Nf6 {[%clk 0:02:00.2]} 22.
Bc4 {[%clk 0:01:41]} 22... Bd5 {[%clk 0:01:56.4]} 23. Bxd5 {[%clk 0:01:34.3]}
23... Nxd5 {[%clk 0:01:57.3]} 24. Bc5 {[%clk 0:01:23.3]} 24... Qa5 {[%clk
0:01:46.5]} 25. Bd4 {[%clk 0:01:20.4]} 25... Nb4 {[%clk 0:01:43]} 26. Qb3 {[%clk
0:01:12.6]} 26... c5 {[%clk 0:01:01.8]} 27. Bxe5 {[%clk 0:01:09.9]} 27... Rxe5
{[%clk 0:01:00]} 28. g4 {[%clk 0:01:00.5]} 28... Red5 {[%clk 0:00:56.9]} 29.
Ne7+ {[%clk 0:00:57.9]} 29... Kf8 {[%clk 0:00:53.2]} 30. Nxd5 {[%clk 0:00:58.8]}
30... Rxd5 {[%clk 0:00:51.9]} 31. Rxd5 {[%clk 0:00:59.7]} 31... Nxd5 {[%clk
0:00:51.7]} 32. Qxd5 {[%clk 0:00:59.8]} 1-0

[Event "Late-Titled-Tuesday-Blitz-December-26-2023"]
[Site "Chess.com"]
[Date "2023.12.26"]
[Round "2"]
[White "SandwichOSaumon"]
[Black "jcmesafischer"]
[Result "0-1"]
[WhiteElo "2481"]
[BlackElo "2335"]
[TimeControl "180+1"]
[EndTime "14:16:19 PST"]
[Termination "jcmesafischer won by resignation"]

1. d4 {[%clk 0:02:51.3]} 1... Nf6 {[%clk 0:02:48]} 2. c4 {[%clk 0:02:50.3]} 2...
e6 {[%clk 0:02:45.7]} 3. Nc3 {[%clk 0:02:48.1]} 3... Bb4 {[%clk 0:02:44.6]} 4.
Bd2 {[%clk 0:02:48.7]} 4... d5 {[%clk 0:02:42]} 5. e3 {[%clk 0:02:46.1]} 5...
Bxc3 {[%clk 0:02:39.8]} 6. Bxc3 {[%clk 0:02:46]} 6... Ne4 {[%clk 0:02:40.3]} 7.
Nf3 {[%clk 0:02:42.8]} 7... c5 {[%clk 0:02:40.1]} 8. cxd5 {[%clk 0:02:42.4]}
8... exd5 {[%clk 0:02:39.4]} 9. Be2 {[%clk 0:02:35.8]} 9... O-O {[%clk
0:02:36.5]} 10. O-O {[%clk 0:02:35.2]} 10... b6 {[%clk 0:02:29.9]} 11. Nd2
{[%clk 0:02:29.8]} 11... Nxc3 {[%clk 0:02:25.5]} 12. bxc3 {[%clk 0:02:30.7]}
12... Ba6 {[%clk 0:02:19]} 13. Bxa6 {[%clk 0:02:21.1]} 13... Nxa6 {[%clk
0:02:19.9]} 14. Qf3 {[%clk 0:02:21.2]} 14... Nc7 {[%clk 0:02:17.7]} 15. Rab1
{[%clk 0:02:15.8]} 15... Qd7 {[%clk 0:02:08.3]} 16. Nb3 {[%clk 0:02:14.5]} 16...
Ne6 {[%clk 0:02:05.1]} 17. Rfd1 {[%clk 0:02:08.7]} 17... Ng5 {[%clk 0:01:31.9]}
18. Qe2 {[%clk 0:01:36.6]} 18... Ne4 {[%clk 0:01:28.7]} 19. Rbc1 {[%clk
0:01:37.2]} 19... cxd4 {[%clk 0:01:17.8]} 20. cxd4 {[%clk 0:01:38.1]} 20... Rac8
{[%clk 0:01:17.1]} 21. Nd2 {[%clk 0:01:30.6]} 21... Nc3 {[%clk 0:01:16.2]} 22.
Rxc3 {[%clk 0:01:21.5]} 22... Rxc3 {[%clk 0:01:17.1]} 23. Nf1 {[%clk 0:01:21.5]}
23... Rfc8 {[%clk 0:01:16.2]} 24. Rd2 {[%clk 0:01:21.9]} 24... Rc1 {[%clk
0:01:14.4]} 25. Rd1 {[%clk 0:01:20.8]} 25... Qa4 {[%clk 0:01:12.1]} 26. Rxc1
{[%clk 0:01:17.7]} 26... Rxc1 {[%clk 0:01:13]} 27. Qd2 {[%clk 0:01:16]} 27...
Rc2 {[%clk 0:01:11.6]} 28. Qd3 {[%clk 0:01:10.6]} 28... Qc4 {[%clk 0:01:08.4]}
29. Qb3 {[%clk 0:00:59.4]} 29... Rxa2 {[%clk 0:00:44.6]} 30. Qxc4 {[%clk
0:00:54.4]} 30... dxc4 {[%clk 0:00:44.6]} 31. g3 {[%clk 0:00:52.1]} 31... c3
{[%clk 0:00:44]} 0-1

[Event "Late-Titled-Tuesday-Blitz-December-26-2023"]
[Site "Chess.com"]
[Date "2023.12.26"]
[Round "2"]
[White "aranibos"]
[Black "thechesscorner64"]
[Result "1-0"]
[WhiteElo "2161"]
[BlackElo "2437"]
[TimeControl "180+1"]
[EndTime "14:16:19 PST"]
[Termination "aranibos won by resignation"]

1. d4 {[%clk 0:03:00.9]} 1... Nf6 {[%clk 0:02:56]} 2. c3 {[%clk 0:03:00.7]} 2...
g6 {[%clk 0:02:55]} 3. Bg5 {[%clk 0:03:01.2]} 3... Bg7 {[%clk 0:02:54.9]} 4. Nd2
{[%clk 0:03:01.5]} 4... b6 {[%clk 0:02:55.2]} 5. Ngf3 {[%clk 0:03:00]} 5... Bb7
{[%clk 0:02:55.2]} 6. e3 {[%clk 0:02:59.3]} 6... d6 {[%clk 0:02:55.5]} 7. Bd3
{[%clk 0:02:58.9]} 7... h6 {[%clk 0:02:55.8]} 8. Bf4 {[%clk 0:02:53.7]} 8...
Nbd7 {[%clk 0:02:55.7]} 9. h4 {[%clk 0:02:50.6]} 9... e6 {[%clk 0:02:52.2]} 10.
Qb3 {[%clk 0:02:48]} 10... Qe7 {[%clk 0:02:49.6]} 11. Bh2 {[%clk 0:02:37.8]}
11... e5 {[%clk 0:02:49.8]} 12. dxe5 {[%clk 0:02:37.6]} 12... dxe5 {[%clk
0:02:49.8]} 13. e4 {[%clk 0:02:37.5]} 13... Nc5 {[%clk 0:02:48.9]} 14. Qc2
{[%clk 0:02:37.9]} 14... Rd8 {[%clk 0:02:41.2]} 15. Bb5+ {[%clk 0:02:35.5]}
15... c6 {[%clk 0:02:40.8]} 16. Be2 {[%clk 0:02:35]} 16... Nh5 {[%clk
0:02:40.4]} 17. O-O-O {[%clk 0:02:25]} 17... Nf4 {[%clk 0:02:34]} 18. Bxf4
{[%clk 0:02:23.2]} 18... exf4 {[%clk 0:02:34.9]} 19. Rhe1 {[%clk 0:02:17.4]}
19... O-O {[%clk 0:02:34]} 20. Bc4 {[%clk 0:02:15.4]} 20... b5 {[%clk
0:02:18.7]} 21. Bf1 {[%clk 0:02:15.8]} 21... Qe6 {[%clk 0:02:12.6]} 22. Kb1
{[%clk 0:02:13.9]} 22... a5 {[%clk 0:02:05.5]} 23. e5 {[%clk 0:02:04.6]} 23...
a4 {[%clk 0:01:54.2]} 24. Ne4 {[%clk 0:02:02.2]} 24... Nxe4 {[%clk 0:01:51.2]}
25. Qxe4 {[%clk 0:02:01.4]} 25... a3 {[%clk 0:01:46.1]} 26. b3 {[%clk
0:01:56.5]} 26... Qg4 {[%clk 0:01:34.8]} 27. g3 {[%clk 0:01:47.8]} 27... Rxd1+
{[%clk 0:01:21.9]} 28. Rxd1 {[%clk 0:01:47.2]} 28... g5 {[%clk 0:01:09.2]} 29.
hxg5 {[%clk 0:01:41.1]} 29... Bc8 {[%clk 0:01:09.3]} 30. Bd3 {[%clk 0:01:38.7]}
30... Rd8 {[%clk 0:00:56.9]} 31. gxh6 {[%clk 0:01:31.6]} 31... Bxe5 {[%clk
0:00:48.5]} 32. h7+ {[%clk 0:01:24.6]} 32... Kf8 {[%clk 0:00:44.4]} 33. Qxe5
{[%clk 0:01:22.8]} 33... Qg7 {[%clk 0:00:13.8]} 34. h8=Q+ {[%clk 0:01:20.9]} 1-0

[Event "Late-Titled-Tuesday-Blitz-December-26-2023"]
[Site "Chess.com"]
[Date "2023.12.26"]
[Round "2"]
[White "Smile2005"]
[Black "Korchmar_Vasiliy"]
[Result "0-1"]
[WhiteElo "2388"]
[BlackElo "2791"]
[TimeControl "180+1"]
[EndTime "14:16:23 PST"]
[Termination "Korchmar_Vasiliy won by resignation"]

1. e4 {[%clk 0:02:47.2]} 1... c5 {[%clk 0:03:00.1]} 2. Nf3 {[%clk 0:02:46.2]}
2... d6 {[%clk 0:03:00.7]} 3. d4 {[%clk 0:02:46.8]} 3... cxd4 {[%clk 0:03:01.6]}
4. Nxd4 {[%clk 0:02:47.3]} 4... Nf6 {[%clk 0:03:02.3]} 5. f3 {[%clk 0:02:48]}
5... e5 {[%clk 0:03:01.7]} 6. Nb3 {[%clk 0:02:47.9]} 6... Be6 {[%clk 0:03:02.4]}
7. c4 {[%clk 0:02:47]} 7... Nbd7 {[%clk 0:03:02.8]} 8. Nc3 {[%clk 0:02:47.2]}
8... Rc8 {[%clk 0:03:03.1]} 9. Nd5 {[%clk 0:02:45.8]} 9... b5 {[%clk 0:03:02]}
10. Nxf6+ {[%clk 0:02:42.5]} 10... Nxf6 {[%clk 0:03:00.9]} 11. cxb5 {[%clk
0:02:42.1]} 11... d5 {[%clk 0:03:01.5]} 12. Bg5 {[%clk 0:02:39.1]} 12... Bb4+
{[%clk 0:02:58]} 13. Bd2 {[%clk 0:02:35.1]} 13... Bd6 {[%clk 0:02:28.1]} 14.
exd5 {[%clk 0:02:26.6]} 14... Nxd5 {[%clk 0:02:28.8]} 15. Be2 {[%clk 0:02:24]}
15... e4 {[%clk 0:02:20.5]} 16. O-O {[%clk 0:02:10.3]} 16... Qh4 {[%clk
0:02:16]} 17. f4 {[%clk 0:02:07.1]} 17... Nxf4 {[%clk 0:02:03.3]} 18. Bxf4
{[%clk 0:01:59.6]} 18... Bxf4 {[%clk 0:02:04.2]} 19. g3 {[%clk 0:01:58.5]} 19...
Be3+ {[%clk 0:01:35.1]} 20. Kh1 {[%clk 0:01:53.7]} 20... Qh6 {[%clk 0:01:35.6]}
21. Nd4 {[%clk 0:01:40.2]} 21... Rd8 {[%clk 0:01:34.2]} 22. Qa4 {[%clk 0:01:01]}
22... Rxd4 {[%clk 0:01:31.2]} 23. Qxa7 {[%clk 0:01:00.1]} 23... O-O {[%clk
0:01:31.6]} 24. b6 {[%clk 0:00:56.5]} 24... Rd2 {[%clk 0:01:30.7]} 25. Rae1
{[%clk 0:00:53.4]} 25... Bg4 {[%clk 0:01:30]} 26. Qa3 {[%clk 0:00:46.5]} 26...
Bxe2 {[%clk 0:01:23.2]} 27. Rxe2 {[%clk 0:00:35.5]} 27... Rxe2 {[%clk
0:01:22.8]} 28. h4 {[%clk 0:00:35.3]} 28... Qe6 {[%clk 0:01:20.3]} 29. g4 {[%clk
0:00:22.9]} 29... Qe5 {[%clk 0:01:17.4]} 30. Rf2 {[%clk 0:00:13.5]} 30... Rxf2
{[%clk 0:01:15.7]} 31. Qxe3 {[%clk 0:00:14]} 0-1

[Event "Late-Titled-Tuesday-Blitz-December-26-2023"]
[Site "Chess.com"]
[Date "2023.12.26"]
[Round "2"]
[White "albi1999"]
[Black "hsd2016"]
[Result "1-0"]
[WhiteElo "2663"]
[BlackElo "2257"]
[TimeControl "180+1"]
[EndTime "14:16:32 PST"]
[Termination "albi1999 won on time"]

1. Nf3 {[%clk 0:02:57.5]} 1... Nf6 {[%clk 0:03:00.1]} 2. c4 {[%clk 0:02:57.2]}
2... c6 {[%clk 0:03:00.4]} 3. e3 {[%clk 0:02:56.8]} 3... d5 {[%clk 0:03:00.2]}
4. Nc3 {[%clk 0:02:56.8]} 4... g6 {[%clk 0:02:53.5]} 5. b3 {[%clk 0:02:55.1]}
5... Bg7 {[%clk 0:02:53.8]} 6. Bb2 {[%clk 0:02:55.5]} 6... O-O {[%clk
0:02:54.3]} 7. d4 {[%clk 0:02:54.5]} 7... Re8 {[%clk 0:02:54.1]} 8. Be2 {[%clk
0:02:54.5]} 8... a6 {[%clk 0:02:53.5]} 9. O-O {[%clk 0:02:54]} 9... b5 {[%clk
0:02:53.5]} 10. Rc1 {[%clk 0:02:52.5]} 10... Nbd7 {[%clk 0:02:41.8]} 11. cxd5
{[%clk 0:02:50.2]} 11... cxd5 {[%clk 0:02:41.1]} 12. a4 {[%clk 0:02:49]} 12...
b4 {[%clk 0:02:38.6]} 13. Na2 {[%clk 0:02:47.9]} 13... a5 {[%clk 0:02:38.4]} 14.
Bb5 {[%clk 0:02:41.6]} 14... Ba6 {[%clk 0:02:34.9]} 15. Qe2 {[%clk 0:02:38.2]}
15... Qb6 {[%clk 0:02:26.1]} 16. Bxa6 {[%clk 0:02:26.5]} 16... Rxa6 {[%clk
0:02:27]} 17. Rc2 {[%clk 0:02:25.4]} 17... e6 {[%clk 0:02:12.4]} 18. Rfc1 {[%clk
0:02:24.5]} 18... Bf8 {[%clk 0:02:06.1]} 19. Nd2 {[%clk 0:02:16.8]} 19... Bd6
{[%clk 0:02:03.4]} 20. h3 {[%clk 0:02:05.1]} 20... Bb8 {[%clk 0:01:51.9]} 21.
Rf1 {[%clk 0:01:59.2]} 21... Qd6 {[%clk 0:01:50]} 22. f4 {[%clk 0:01:56.8]}
22... Nh5 {[%clk 0:01:26.2]} 23. Qb5 {[%clk 0:01:51.6]} 23... Ng3 {[%clk
0:01:20.3]} 24. Re1 {[%clk 0:01:51.5]} 24... Nf5 {[%clk 0:01:12.6]} 25. Nc1
{[%clk 0:01:49.7]} 25... Rb6 {[%clk 0:00:28.2]} 26. Qxa5 {[%clk 0:01:48.4]}
26... Nxe3 {[%clk 0:00:26.7]} 27. Rxe3 {[%clk 0:01:47.5]} 27... Qxf4 {[%clk
0:00:26.9]} 28. Nf1 {[%clk 0:01:47]} 28... Bc7 {[%clk 0:00:04.3]} 29. Nd3 {[%clk
0:01:42.5]} 29... Qd6 {[%clk 0:00:04.6]} 30. Qa7 {[%clk 0:01:37.7]} 30... Rc8
{[%clk 0:00:03.1]} 31. Re1 {[%clk 0:01:29]} 31... Rc6 {[%clk 0:00:02.4]} 32.
Rec1 {[%clk 0:01:22.6]} 32... Rxc2 {[%clk 0:00:02.4]} 33. Rxc2 {[%clk
0:01:23.5]} 1-0

[Event "Late-Titled-Tuesday-Blitz-December-26-2023"]
[Site "Chess.com"]
[Date "2023.12.26"]
[Round "2"]
[White "frederiksvane"]
[Black "Sanyura"]
[Result "1-0"]
[WhiteElo "2973"]
[BlackElo "2609"]
[TimeControl "180+1"]
[EndTime "14:16:36 PST"]
[Termination "frederiksvane won by resignation"]

1. e4 {[%clk 0:03:00.9]} 1... c5 {[%clk 0:02:48.8]} 2. Nf3 {[%clk 0:03:01.1]}
2... e6 {[%clk 0:02:49]} 3. g3 {[%clk 0:02:59.7]} 3... Nc6 {[%clk 0:02:48.1]} 4.
Bg2 {[%clk 0:03:00]} 4... d5 {[%clk 0:02:48.7]} 5. exd5 {[%clk 0:02:59.5]} 5...
exd5 {[%clk 0:02:49.6]} 6. O-O {[%clk 0:02:59]} 6... Bd6 {[%clk 0:02:47.2]} 7.
d4 {[%clk 0:02:59.1]} 7... Nge7 {[%clk 0:02:47]} 8. dxc5 {[%clk 0:02:56.8]} 8...
Bxc5 {[%clk 0:02:47.3]} 9. a3 {[%clk 0:02:56.8]} 9... Bg4 {[%clk 0:02:40.2]} 10.
h3 {[%clk 0:02:53.4]} 10... Bxf3 {[%clk 0:02:37.5]} 11. Qxf3 {[%clk 0:02:51.8]}
11... O-O {[%clk 0:02:36.9]} 12. Nc3 {[%clk 0:02:49.9]} 12... d4 {[%clk
0:02:24.1]} 13. Ne4 {[%clk 0:02:49.8]} 13... Bb6 {[%clk 0:02:23.7]} 14. Bf4
{[%clk 0:02:50.1]} 14... Ng6 {[%clk 0:02:21]} 15. Rad1 {[%clk 0:02:28.9]} 15...
Nxf4 {[%clk 0:02:14.3]} 16. Qxf4 {[%clk 0:02:29.2]} 16... Rc8 {[%clk 0:02:13.8]}
17. c3 {[%clk 0:02:23.9]} 17... Qc7 {[%clk 0:02:09.3]} 18. Qxc7 {[%clk 0:02:14]}
18... Rxc7 {[%clk 0:02:10.2]} 19. c4 {[%clk 0:02:09.7]} 19... Re7 {[%clk
0:02:10.4]} 20. b4 {[%clk 0:02:04.8]} 20... a6 {[%clk 0:01:56.3]} 21. Nd6 {[%clk
0:02:01.7]} 21... Re6 {[%clk 0:01:10.7]} 22. c5 {[%clk 0:01:53.7]} 22... Bc7
{[%clk 0:01:09.3]} 23. Nxb7 {[%clk 0:01:54.1]} 23... Rb8 {[%clk 0:01:10]} 24.
Rfe1 {[%clk 0:01:36.4]} 24... Rxe1+ {[%clk 0:00:28.8]} 25. Rxe1 {[%clk
0:01:37.3]} 25... Ne5 {[%clk 0:00:29.3]} 26. Rd1 {[%clk 0:01:27.5]} 26... Nc4
{[%clk 0:00:10.5]} 27. Rxd4 {[%clk 0:01:23.5]} 27... Nxa3 {[%clk 0:00:10.7]} 28.
Rd7 {[%clk 0:01:24.1]} 28... Be5 {[%clk 0:00:10.9]} 29. Bd5 {[%clk 0:01:23.7]}
29... h5 {[%clk 0:00:06.2]} 30. Rxf7 {[%clk 0:01:21.9]} 30... Kh8 {[%clk
0:00:06.6]} 31. c6 {[%clk 0:01:17.4]} 31... Nb5 {[%clk 0:00:04.3]} 32. Rf5
{[%clk 0:01:13.5]} 1-0

[Event "Late-Titled-Tuesday-Blitz-December-26-2023"]
[Site "Chess.com"]
[Date "2023.12.26"]
[Round "2"]
[White "BlackGod93"]
[Black "vugarrasulov"]
[Result "0-1"]
[WhiteElo "2588"]
[BlackElo "2921"]
[TimeControl "180+1"]
[EndTime "14:16:43 PST"]
[Termination "vugarrasulov won on time"]

1. d4 {[%clk 0:02:58.7]} 1... Nf6 {[%clk 0:02:59.9]} 2. Nf3 {[%clk 0:02:53.2]}
2... g6 {[%clk 0:02:58.7]} 3. Bg5 {[%clk 0:02:52.1]} 3... Bg7 {[%clk 0:02:58.5]}
4. Nbd2 {[%clk 0:02:52.7]} 4... d5 {[%clk 0:02:57.3]} 5. e3 {[%clk 0:02:52.6]}
5... O-O {[%clk 0:02:56.4]} 6. Bd3 {[%clk 0:02:53.1]} 6... b6 {[%clk 0:02:54.2]}
7. Qe2 {[%clk 0:02:50.8]} 7... a5 {[%clk 0:02:52.5]} 8. c3 {[%clk 0:02:48.7]}
8... Ba6 {[%clk 0:02:46.8]} 9. c4 {[%clk 0:02:46.6]} 9... h6 {[%clk 0:02:39.3]}
10. Bf4 {[%clk 0:02:44.8]} 10... Nbd7 {[%clk 0:02:35.3]} 11. h4 {[%clk
0:02:43.7]} 11... c5 {[%clk 0:02:32.3]} 12. h5 {[%clk 0:02:37.3]} 12... Nxh5
{[%clk 0:02:28.7]} 13. Bxh6 {[%clk 0:02:18]} 13... Bxh6 {[%clk 0:02:25.5]} 14.
g4 {[%clk 0:02:18.3]} 14... Nf4 {[%clk 0:02:15.1]} 15. exf4 {[%clk 0:02:16.7]}
15... Bxf4 {[%clk 0:02:16]} 16. Nh4 {[%clk 0:01:14.3]} 16... e5 {[%clk
0:01:54.8]} 17. Qf3 {[%clk 0:00:44.9]} 17... Qg5 {[%clk 0:01:47.1]} 18. Rd1
{[%clk 0:00:36.5]} 18... Kg7 {[%clk 0:01:36.9]} 19. Qxd5 {[%clk 0:00:35.7]}
19... Nf6 {[%clk 0:01:32.1]} 20. Qc6 {[%clk 0:00:20.6]} 20... Bxd2+ {[%clk
0:01:16.9]} 21. Rxd2 {[%clk 0:00:20.6]} 21... e4 {[%clk 0:01:16.1]} 22. Bf1
{[%clk 0:00:02.9]} 22... cxd4 {[%clk 0:01:12.6]} 23. Qxb6 {[%clk 0:00:01.3]}
23... Rh8 {[%clk 0:01:00.8]} 24. Qxd4 {[%clk 0:00:01.4]} 24... Rad8 {[%clk
0:01:00.1]} 0-1

[Event "Late-Titled-Tuesday-Blitz-December-26-2023"]
[Site "Chess.com"]
[Date "2023.12.26"]
[Round "2"]
[White "penguingm1"]
[Black "WPWPWP-2015"]
[Result "1-0"]
[WhiteElo "2910"]
[BlackElo "2578"]
[TimeControl "180+1"]
[EndTime "14:16:43 PST"]
[Termination "penguingm1 won by resignation"]

1. d4 {[%clk 0:03:00.9]} 1... Nf6 {[%clk 0:02:59.3]} 2. c4 {[%clk 0:02:59.6]}
2... e6 {[%clk 0:02:59.7]} 3. Nc3 {[%clk 0:02:59.6]} 3... Bb4 {[%clk 0:02:59.6]}
4. Qc2 {[%clk 0:02:59.8]} 4... d5 {[%clk 0:02:59.5]} 5. cxd5 {[%clk 0:02:59.8]}
5... Qxd5 {[%clk 0:02:59.5]} 6. Nf3 {[%clk 0:02:59.9]} 6... Qf5 {[%clk
0:02:59.7]} 7. Qb3 {[%clk 0:03:00]} 7... Nc6 {[%clk 0:02:59.6]} 8. Bd2 {[%clk
0:03:00.2]} 8... O-O {[%clk 0:02:58.4]} 9. h3 {[%clk 0:02:58.7]} 9... h6 {[%clk
0:02:57.3]} 10. g4 {[%clk 0:02:52.7]} 10... Qa5 {[%clk 0:02:46.8]} 11. e3 {[%clk
0:02:52.1]} 11... a6 {[%clk 0:02:42]} 12. Bg2 {[%clk 0:02:48.2]} 12... Bd7
{[%clk 0:02:36.7]} 13. O-O {[%clk 0:02:42]} 13... Rfe8 {[%clk 0:02:27.5]} 14.
Rfd1 {[%clk 0:02:38.5]} 14... Rad8 {[%clk 0:02:25.9]} 15. Rac1 {[%clk
0:02:35.8]} 15... Nd5 {[%clk 0:02:11]} 16. a3 {[%clk 0:02:20.3]} 16... Nxc3
{[%clk 0:01:57.2]} 17. bxc3 {[%clk 0:02:01.6]} 17... Qxa3 {[%clk 0:01:55.1]} 18.
Qc2 {[%clk 0:01:58.1]} 18... Nxd4 {[%clk 0:01:40.2]} 19. cxd4 {[%clk 0:01:46.5]}
19... Ba4 {[%clk 0:01:39.6]} 20. Bxb4 {[%clk 0:01:46.4]} 20... Qxb4 {[%clk
0:01:39.1]} 21. Qd2 {[%clk 0:01:46.3]} 21... Qd6 {[%clk 0:01:28.7]} 22. Re1
{[%clk 0:01:45.1]} 22... Bc6 {[%clk 0:01:21.3]} 23. Qc3 {[%clk 0:01:45.1]} 23...
Re7 {[%clk 0:01:12.2]} 24. Qc5 {[%clk 0:01:28.8]} 24... Qxc5 {[%clk 0:01:04.8]}
25. Rxc5 {[%clk 0:01:28.3]} 25... Be4 {[%clk 0:01:03.6]} 26. Ne5 {[%clk
0:01:24.9]} 26... Bxg2 {[%clk 0:01:02]} 27. Kxg2 {[%clk 0:01:25.8]} 27... c6
{[%clk 0:01:02.1]} 28. Rb1 {[%clk 0:01:25.4]} 28... f6 {[%clk 0:00:58.7]} 29.
Nc4 {[%clk 0:01:24.1]} 29... Rc7 {[%clk 0:00:55.7]} 30. Na5 {[%clk 0:01:21.4]}
30... Rdd7 {[%clk 0:00:55.7]} 31. Rb6 {[%clk 0:01:20.7]} 31... Kf8 {[%clk
0:00:47.9]} 32. Rc2 {[%clk 0:01:19.9]} 32... e5 {[%clk 0:00:29.1]} 33. dxe5
{[%clk 0:01:19.6]} 33... fxe5 {[%clk 0:00:29.2]} 34. Nb3 {[%clk 0:01:20.2]}
34... Re7 {[%clk 0:00:20.2]} 35. Nc5 {[%clk 0:01:18.9]} 35... Kf7 {[%clk
0:00:19.1]} 36. Rcb2 {[%clk 0:01:18.9]} 36... g6 {[%clk 0:00:17.6]} 37. Nxb7
{[%clk 0:01:18.9]} 37... Ke6 {[%clk 0:00:16.7]} 38. Nc5+ {[%clk 0:01:17.7]}
38... Kd5 {[%clk 0:00:17]} 39. Nxa6 {[%clk 0:01:18.6]} 39... Ra7 {[%clk
0:00:16]} 40. Nb4+ {[%clk 0:01:18.5]} 40... Ke6 {[%clk 0:00:10.2]} 41. Nxc6
{[%clk 0:01:19.4]} 1-0

[Event "Late-Titled-Tuesday-Blitz-December-26-2023"]
[Site "Chess.com"]
[Date "2023.12.26"]
[Round "2"]
[White "Felix-Rose"]
[Black "ccccvhhhj"]
[Result "0-1"]
[WhiteElo "2243"]
[BlackElo "2482"]
[TimeControl "180+1"]
[EndTime "14:16:45 PST"]
[Termination "ccccvhhhj won on time"]

1. d4 {[%clk 0:03:00.6]} 1... e5 {[%clk 0:03:00.2]} 2. dxe5 {[%clk 0:03:00.6]}
2... d6 {[%clk 0:03:00.8]} 3. exd6 {[%clk 0:02:59.3]} 3... Bxd6 {[%clk
0:03:01.7]} 4. Nf3 {[%clk 0:02:58.7]} 4... Nc6 {[%clk 0:03:02.3]} 5. Nbd2 {[%clk
0:02:55.5]} 5... Bg4 {[%clk 0:03:01.9]} 6. h3 {[%clk 0:02:55]} 6... Bh5 {[%clk
0:03:01.5]} 7. e4 {[%clk 0:02:54.1]} 7... Qe7 {[%clk 0:03:01.9]} 8. Bb5 {[%clk
0:02:49.6]} 8... Nf6 {[%clk 0:02:58.1]} 9. O-O {[%clk 0:02:46.5]} 9... O-O
{[%clk 0:02:45]} 10. Bxc6 {[%clk 0:02:43.2]} 10... bxc6 {[%clk 0:02:45.9]} 11.
e5 {[%clk 0:02:21.5]} 11... Bxe5 {[%clk 0:02:46.2]} 12. Re1 {[%clk 0:02:18.9]}
12... Rfe8 {[%clk 0:02:41.3]} 13. g4 {[%clk 0:02:11.1]} 13... Nxg4 {[%clk
0:02:35]} 14. hxg4 {[%clk 0:02:08.1]} 14... Bxg4 {[%clk 0:02:35.9]} 15. Re4
{[%clk 0:01:41.5]} 15... Bh5 {[%clk 0:02:14]} 16. Qe2 {[%clk 0:01:25.6]} 16...
f6 {[%clk 0:01:53]} 17. Qc4+ {[%clk 0:01:24.8]} 17... Kh8 {[%clk 0:01:52.7]} 18.
Nxe5 {[%clk 0:01:11.5]} 18... fxe5 {[%clk 0:01:53.6]} 19. Nf1 {[%clk 0:01:00.7]}
19... Bf3 {[%clk 0:01:46.3]} 20. Rh4 {[%clk 0:00:52.5]} 20... e4 {[%clk
0:01:43.8]} 21. Rh3 {[%clk 0:00:46.8]} 21... Qd7 {[%clk 0:01:38]} 22. Rg3 {[%clk
0:00:43.6]} 22... Re6 {[%clk 0:01:34.6]} 23. Nh2 {[%clk 0:00:38.4]} 23... Qd1+
{[%clk 0:01:30]} 24. Qf1 {[%clk 0:00:32.7]} 24... Qxc2 {[%clk 0:01:30.6]} 25.
Be3 {[%clk 0:00:21.1]} 25... Rf8 {[%clk 0:01:15]} 26. Nxf3 {[%clk 0:00:16.5]}
26... exf3 {[%clk 0:01:14.9]} 27. Qc1 {[%clk 0:00:15.5]} 27... Qf5 {[%clk
0:01:12]} 28. Qc3 {[%clk 0:00:14.4]} 28... Rg6 {[%clk 0:01:12]} 29. Rf1 {[%clk
0:00:06.2]} 29... Qh3 {[%clk 0:01:09.6]} 0-1